Cogmind - Beta 15 @@@ ROGUE MODE // 2025.05.06 @ 19:15:43 Player: J1ang-5h1 Result: Destroyed by G-50 Soldier with Heavy Laser Performance ------------- Evolutions (4) 2000 Regions Visited (13) 2600 Robots Destroyed (48) 240 Value Destroyed (1364) 1364 Prototype IDs (34) 680 Alien Tech Used (0) 0 Bonus (424) 424 TOTAL SCORE: 7308 Bonus ------- Follower Combat Kills 124 Aligned with FarCom 300 Cogmind --------- Core Integrity 0/850 Matter 294/300 Energy 36/100 System Corruption 13% Temperature Cool (9) Movement Core (50) Location -6/Lower Caves Parts ------- > --- POWER (2) -------- (None) > --- PROPULSION (7) --- (None) > --- UTILITY (4) ------ (None) > --- WEAPON (2) ------- (None) > --- INVENTORY (5) ---- Huge Storage Unit High-capacity Matter Pod (200) Transmission Jammer YOLO Cannon Peak State ------------ > --- POWER ------------ Improved Deuterium Engine Light Angular Momentum Engine > --- PROPULSION ------- Flight Unit Flight Unit Flight Unit Xenon Bombardment Thruster Nuclear Pulse Thruster Nuclear Pulse Thruster Nuclear Pulse Thruster > --- UTILITY ---------- Improved Cooling System Medium Storage Unit Weight Redist. System IFF Parser > --- WEAPON ----------- Phasing Sabre Phasing Sabre > --- INVENTORY -------- Large Storage Unit Huge Storage Unit High-capacity Matter Pod Transmission Jammer Mobile Refinery Mk. CCLXVII YOLO Cannon Heavy Rocket Launcher Heavy Rocket Launcher CR-A16's Pointy Stick [Rating: 59] Favorites ----------- Power Light Ion Engine Engine Light Ion Engine Power Core Light Fission Core Propulsion Flight Unit Treads Light Treads Wheel Wheel Hover Unit Improved Gravmag System Flight Unit Flight Unit Utility Medium Storage Unit Device Weight Redist. System Storage Medium Storage Unit Processor Targeting Computer Protection Light Armor Plating Weapon Phasing Sabre Energy Gun EM Pulse Gun Energy Cannon YOLO Cannon Ballistic Gun Assault Rifle Launcher Heavy Rocket Launcher Special Weapon Mining Laser Impact Weapon Makeshift Hammer Slashing Weapon Phasing Sabre Piercing Weapon CR-A16's Pointy Stick Build | -11 -10 -10 -10 -9 -8 -7 -7 -7 -7 -6 -6 -6 -6 ------- Run | Yrd Mat Min Exi Min Mat Fac Low Low Zio Pro Fac Low Low Slots Evolved 8 | . . . . . 4 2 . . . . 2 . . Power 1 | . . . . . . 1 . . . . . . . Propulsion 5 | . . . . . 4 1 . . . . . . . Utility 2 | . . . . . . . . . . . 2 . . Weapon . | . . . . . . . . . . . . . . Parts Attached 64 | 9 6 3 1 4 8 4 2 . 5 1 10 . 11 Power 10 | 1 1 1 . 1 . . . . 1 1 2 . 2 Engine 9 | 1 1 1 . 1 . . . . . 1 2 . 2 Core 1 | . . . . . . . . . 1 . . . . Reactor . | . . . . . . . . . . . . . . Propulsion 20 | 2 . 1 . 1 6 2 . . . . 7 . 1 Treads 2 | . . . . 1 . . . . . . . . 1 Leg . | . . . . . . . . . . . . . . Wheel 3 | 2 . 1 . . . . . . . . . . . Hover 3 | . . . . . . . . . . . 3 . . Flight 12 | . . . . . 6 2 . . . . 4 . . Utility 18 | 3 3 . 1 1 2 1 . . 2 . 1 . 4 Device 9 | 2 . . . 1 . 1 . . 2 . 1 . 2 Storage 5 | 1 1 . 1 . 2 . . . . . . . . Processor 2 | . 1 . . . . . . . . . . . 1 Hackware . | . . . . . . . . . . . . . . Protection 2 | . 1 . . . . . . . . . . . 1 Artifact . | . . . . . . . . . . . . . . Weapon 16 | 3 2 1 . 1 . 1 2 . 2 . . . 4 Energy Gun 6 | 2 . 1 . 1 . 1 . . . . . . 1 Energy Cannon 1 | . . . . . . . . . . . . . 1 Ballistic Gun 2 | 1 1 . . . . . . . . . . . . Ballistic Cannon . | . . . . . . . . . . . . . . Launcher 1 | . . . . . . . . . . . . . 1 Special Weapon 1 | . 1 . . . . . . . . . . . . Impact Weapon 2 | . . . . . . . 2 . . . . . . Slashing Weapon 2 | . . . . . . . . . 2 . . . . Piercing Weapon 1 | . . . . . . . . . . . . . 1 Special Melee Weapon . | . . . . . . . . . . . . . . Unidentified Prototypes 1 | . . . . . . . . . . . . . 1 Parts Lost 34 | . 3 2 . 4 . . . . . . 6 . 19 Power 8 | . . 1 . 1 . . . . . . 2 . 4 Propulsion 14 | . 1 . . 1 . . . . . . 4 . 8 Utility 7 | . 1 . . 1 . . . . . . . . 5 Weapon 5 | . 1 1 . 1 . . . . . . . . 2 Highest Loss Streak 10 | . 1 1 . 3 . . . . . . 4 . 10 To Critical Strikes . | . . . . . . . . . . . . . . Average Backups 12 | 4 14 21 24 23 11 9 9 9 9 9 8 9 8 Power . | . . 1 3 3 . . . . . . . . . Propulsion 3 | 1 6 9 9 8 2 1 1 1 . . . . . Utility 6 | 1 5 9 8 7 5 5 6 6 6 7 5 5 5 Weapon 2 | 1 1 1 2 2 2 2 2 2 2 2 3 3 2 Tool/Special . | . . . . . . . . . . . . . . Unused Backups 16 | . 1 1 2 . 6 1 . . 2 1 . 1 1 Power 3 | . . . . . 3 . . . . . . . . Propulsion 1 | . . . . . . . . . 1 . . . . Utility 9 | . 1 1 1 . 3 1 . . . 1 . . 1 Weapon 2 | . . . . . . . . . 1 . . 1 . Tool/Special 1 | . . . 1 . . . . . . . . . . Average Slot Usage (%) 90 | . 92 95 100 99 97 89 91 92 93 100 85 100 53 Engine 10 | . 13 14 14 13 9 7 7 7 7 7 9 13 8 Wheel 8 | . 22 24 28 25 . . . . . . . . . Hover 1 | . . . . . . . . . . . 12 . . Flight 25 | . . . . . 49 51 53 53 53 53 22 46 5 Device 6 | . 1 . . 1 9 7 7 7 7 7 19 20 6 Storage 9 | . 14 14 14 14 9 7 7 7 7 7 6 6 5 Processor 2 | . 10 . . . . . . . . . . . 4 Protection 2 | . 1 14 14 11 . . . . . . . . 2 Energy Gun 6 | . 15 7 14 16 18 15 6 . . . . . . Ballistic Gun 4 | . 11 20 14 11 . . . . . . . . . Impact Weapon 2 | . . . . . . . 8 15 9 . . . . Slashing Weapon 4 | . . . . . . . . . 5 15 13 13 7 Peak Build Rating 59 | 7 9 10 13 15 18 21 27 27 37 39 58 59 59 Average Rating 24 | 5 7 9 11 13 16 17 24 27 27 38 46 58 31 On Entrance 23 | . 7 8 10 13 15 16 21 27 27 35 39 58 59 Naked Turns 4 | . . . . . . . . . . . . . 4 Heaviest Build 91 | 13 90 91 91 91 88 18 20 20 30 34 40 40 46 Greatest Support 42 | 26 26 20 20 20 24 30 26 30 32 36 42 42 42 Greatest Overweight (x) 13 | 1 8 8 4 4 3 1 1 1 1 3 3 . 13 Average Overweight (x) 1 | . 3 4 4 4 . . . . . 1 . . 1 Largest Inventory Capacity 25 | 8 25 25 25 25 25 10 15 10 15 10 10 15 15 Average Capacity 14 | 5 20 25 25 25 14 10 10 10 10 10 10 10 12 Most Carried 25 | 7 24 23 25 25 21 10 10 10 11 10 10 10 10 Average Carried 13 | 4 14 21 24 24 12 9 9 10 9 9 9 10 9 Final Capacity 25 | 8 25 25 25 25 10 10 10 10 10 10 10 10 5 Final Carried 25 | 7 23 22 25 22 10 10 10 10 10 10 10 10 5 Class Distribution -------------------- 90% | Mutant 7% | Sprinter Dominant Class ---------------- Mutant | -10/Materials Mutant | -10/Mines Mutant | -10/Exiles Mutant | -9/Mines Mutant | -8/Materials Mutant | -7/Factory Mutant | -7/Lower Caves Mutant | -7/Lower Caves Mutant | -7/Zion Mutant | -6/Proximity Caves Mutant | -6/Factory Sprinter | -6/Lower Caves Mutant | -6/Lower Caves Resources | -11 -10 -10 -10 -9 -8 -7 -7 -7 -7 -6 -6 -6 -6 ----------- Run | Yrd Mat Min Exi Min Mat Fac Low Low Zio Pro Fac Low Low Matter Collected 1708 | 146 500 337 . 98 . . 120 40 90 20 . 166 191 Remotely . | . . . . . . . . . . . . . . Salvage Created 1610 | 181 655 229 . 209 . . . . . . 45 20 271 Parts 102 | 18 50 10 . 11 . . . . . . 5 1 7 Haulers Intercepted 1 | . 1 . . . . . . . . . . . . Recyclers Shooed 1 | 1 . . . . . . . . . . . . . Parts Field Recycled . | . . . . . . . . . . . . . . Retrieved Matter . | . . . . . . . . . . . . . . Parts Self-Destructed 21 | . . . . . . . . 7 . 10 . . 4 Prevented . | . . . . . . . . . . . . . . Kills | -11 -10 -10 -10 -9 -8 -7 -7 -7 -7 -6 -6 -6 -6 ------- Run | Yrd Mat Min Exi Min Mat Fac Low Low Zio Pro Fac Low Low Combat Hostiles Destroyed 38 | . 17 7 . 6 . . . . . . 1 . 7 Melee 3 | . . . . . . . . . . . 1 . 2 Guns 26 | . 13 7 . 6 . . . . . . . . . AOE 8 | . 4 . . . . . . . . . . . 4 Classes Destroyed 11 | 2 5 . . . . . . . . . 1 1 2 Tunneler 5 | 5 . . . . . . . . . . . . . Hauler 1 | . 1 . . . . . . . . . . . . Recycler 1 | 1 . . . . . . . . . . . . . Operator 1 | . 1 . . . . . . . . . . . . Watcher 2 | . 2 . . . . . . . . . . . . Swarmer 9 | . 6 3 . . . . . . . . . . . Grunt 25 | . 11 4 . 6 . . . . . . . . 4 Brawler 2 | . . . . . . . . . . . . . 2 Sentry 1 | . . . . . . . . . . . . . 1 Programmer 1 | . . . . . . . . . . . 1 . . Decomposer 1 | . . . . . . . . . . . . 1 . Best Kill Streak 4 | 3 4 3 . 3 . . . . . . 1 . 4 Combat Bots Only 4 | . 3 3 . 3 . . . . . . 1 . 4 Max Kills in Single Turn 2 | 1 2 1 . 1 . . . . . . 1 1 2 Gunslinging 1 | . 1 . . . . . . . . . . . . Exploded 2 | . 2 . . . . . . . . . . . 2 Melee 1 | . . . . . . . . . . . 1 . 1 Uniques/NPCs Destroyed . | . . . . . . . . . . . . . . Combat | -11 -10 -10 -10 -9 -8 -7 -7 -7 -7 -6 -6 -6 -6 -------- Run | Yrd Mat Min Exi Min Mat Fac Low Low Zio Pro Fac Low Low Hostile Shots Fired 365 | . 66 41 . 29 . . 3 4 . . 2 6 214 Missed 107 | . 17 18 . 7 . . 3 3 . . . 5 54 Hits 258 | . 49 23 . 22 . . . 1 . . 2 1 160 Melee 8 | . . . . . . . . 1 . . . . 7 Projectile 250 | . 49 23 . 22 . . . . . . 2 1 153 Critical Strikes 2 | . . . . . . . . . . . . . 2 Damage Taken 3566 | . 515 238 . 244 . . . 39 . . 483 18 2029 Core 1097 | . 136 45 . 66 . . . . . . 149 . 701 Absorbed by Shields . | . . . . . . . . . . . . . . Regen/Repaired (Parts) 33 | . 33 . . . . . . . . . . . . Core Remaining (%) 75 | 100 . . . 1 100 . . . . 100 . . . Volleys Fired 143 | 31 58 25 . 22 . 2 . . . . . . 5 Largest 2 | 1 2 2 . 2 . 2 . . . . . . 1 Hottest 105 | 20 100 85 . 105 . 80 . . . . . . 100 Shots Fired 241 | 31 112 48 . 41 . 4 . . . . . . 5 Gun 229 | 31 108 48 . 38 . 4 . . . . . . . Cannon 1 | . . . . . . . . . . . . . 1 Launcher 4 | . . . . . . . . . . . . . 4 Special 7 | . 4 . . 3 . . . . . . . . . Kinetic 132 | 31 44 41 . 16 . . . . . . . . . Thermal 41 | . 4 7 . 25 . 4 . . . . . . 1 Explosive 4 | . . . . . . . . . . . . . 4 Electromagnetic 64 | . 64 . . . . . . . . . . . . Robot Hit Streak 10 | 7 10 9 . 7 . 8 . . . . . . 2 Robot Miss Streak 5 | 5 5 2 . 2 . . . . . . . . 1 Penetration Max . | . . . . . . . . . . . . . . Secondary Targets 1 | . 1 . . . . . . . . . . . . Max Gunslinging Chain 1 | . 1 . . . . . . . . . . . . Shots Hit Robots 166 | 20 62 33 . 25 . 4 . . . . 1 1 20 Core Hits 73 | 7 29 12 . 8 . 2 . . . . 1 . 14 Critical Kills 1 | . . . . . . . . . . . . . 1 Critical Parts Destroyed 1 | . . 1 . . . . . . . . . . . Critical Strikes 4 | . . 1 . . . . . . . . . . 3 Meltdown 1 | . . . . . . . . . . . . . 1 Destroy 1 | . . 1 . . . . . . . . . . . Sever 2 | . . . . . . . . . . . . . 2 Melee Attacks 61 | . . . . . . . . 1 . . 28 7 25 Impact 1 | . . . . . . . . 1 . . . . . Slashing 58 | . . . . . . . . . . . 28 7 23 Piercing 2 | . . . . . . . . . . . . . 2 Sneak Attacks 1 | . . . . . . . . . . . . 1 . Combat Hostiles . | . . . . . . . . . . . . . . Follow-up Attacks 1 | . . . . . . . . . . . . . 1 Damage Inflicted 3834 | 258 1062 453 . 417 . 45 . . . . 42 122 1435 Guns 2068 | 258 895 453 . 417 . 45 . . . . . . . Cannons 104 | . . . . . . . . . . . . . 104 Explosions 769 | . 143 . . . . . . . . . . . 626 Melee 869 | . . . . . . . . . . . 42 122 705 Ramming . | . . . . . . . . . . . . . . Kinetic 1145 | 258 377 353 . 157 . . . . . . . . . Thermal 829 | . 167 100 . 260 . 45 . . . . . . 257 Explosive 473 | . . . . . . . . . . . . . 473 Electromagnetic 518 | . 518 . . . . . . . . . . . . Impact . | . . . . . . . . . . . . . . Slashing 837 | . . . . . . . . . . . 42 122 673 Piercing 32 | . . . . . . . . . . . . . 32 Highest Corruption 13 | . . . . . . . . . . . 8 8 13 Average Corruption 8 | . . . . . . . . . . . 8 8 9 Corruption Purged . | . . . . . . . . . . . . . . Corruption Blocked . | . . . . . . . . . . . . . . Effects 55 | . . . . . . . . . . . 25 9 21 Message Errors 11 | . . . . . . . . . . . 5 2 4 Matter Fused 14 | . . . . . . . . . . . 6 3 5 Heat Flow Errors 7 | . . . . . . . . . . . 4 2 1 Energy Discharges 8 | . . . . . . . . . . . 5 . 3 Parts Rejected 2 | . . . . . . . . . . . 1 . 1 Parts Fused 1 | . . . . . . . . . . . . . 1 Data Loss (minor) 8 | . . . . . . . . . . . 3 . 5 Data Loss (major) 2 | . . . . . . . . . . . 1 1 . Alerts 1 | . . . . . . . . . . . . 1 . Misdirections 1 | . . . . . . . . . . . . . 1 Overload Shots . | . . . . . . . . . . . . . . Overflow Damage 149 | . . . . . . . . . . . . 114 35 Projectiles . | . . . . . . . . . . . . . . Explosions . | . . . . . . . . . . . . . . Melee 149 | . . . . . . . . . . . . 114 35 Knockbacks . | . . . . . . . . . . . . . . Impact . | . . . . . . . . . . . . . . Kinetic . | . . . . . . . . . . . . . . Secondary . | . . . . . . . . . . . . . . Self-Inflicted Damage 88 | . . . . . . . . . . . . . 88 Shots 2 | . . . . . . . . . . . . . 2 Rammed . | . . . . . . . . . . . . . . Targets Rammed . | . . . . . . . . . . . . . . Kicked . | . . . . . . . . . . . . . . Crushed . | . . . . . . . . . . . . . . Highest Temperature 314 | . 162 205 . 193 . 63 4 84 190 314 250 178 247 Average Temperature 77 | . 47 112 . 73 . 36 3 31 78 130 123 70 74 Received Heat Transfer 1080 | . 225 78 . 132 . . . . . . . 9 636 Effects 3 | . . 1 . . . . . . . 2 . . . Energy Bleed 1 | . . 1 . . . . . . . . . . . Interference 2 | . . . . . . . . . . 2 . . . Siege Activations . | . . . . . . . . . . . . . . Martial Activations . | . . . . . . . . . . . . . . Shielding Activations . | . . . . . . . . . . . . . . Robots Disrupted . | . . . . . . . . . . . . . . Combat Hostiles . | . . . . . . . . . . . . . . Robots Corrupted . | . . . . . . . . . . . . . . Combat Hostiles . | . . . . . . . . . . . . . . Parts Fried 1 | . 1 . . . . . . . . . . . . Impact Corruptions . | . . . . . . . . . . . . . . Robots Melted 1 | . . . . . . . . . . . . . 1 Combat Hostiles 1 | . . . . . . . . . . . . . 1 Parts Melted . | . . . . . . . . . . . . . . Heat Transferred 1497 | . 250 259 . 568 . 100 . . . . . . 320 Parts Sabotaged . | . . . . . . . . . . . . . . Parts Stolen . | . . . . . . . . . . . . . . Parts Stripped . | . . . . . . . . . . . . . . Power Chain Reactions 2 | . 2 . . . . . . . . . . . . Alert | -11 -10 -10 -10 -9 -8 -7 -7 -7 -7 -6 -6 -6 -6 ------- Run | Yrd Mat Min Exi Min Mat Fac Low Low Zio Pro Fac Low Low Maximum Alert Level . | . . . . . . . . . . . . . . Low Security (%) 100 | 100 100 100 . 100 100 100 . . . . 100 . . Level 1 . | . . . . . . . . . . . . . . Level 2 . | . . . . . . . . . . . . . . Level 3 . | . . . . . . . . . . . . . . Level 4 . | . . . . . . . . . . . . . . Level 5 . | . . . . . . . . . . . . . . High Security . | . . . . . . . . . . . . . . Max Security . | . . . . . . . . . . . . . . Peak Influence 154 | 15 154 120 . 46 5 8 . . . . 30 . . Initial 50 | . . 50 . . 1 . . . . . . . . Average 24 | 3 49 54 . 5 . . . . . . 2 . . Influence Increases 1555 | 30 642 192 . 120 5 8 . 15 . 133 85 90 235 Destroy 0b10 Robot/C 820 | . 340 140 . 120 . . . . . 60 20 . 140 Destroy 0b10 Robot/NC 50 | 30 20 . . . . . . . . . . . . Destroy Leader 146 | . 76 30 . . . . . . . 10 10 . 20 Allied During Kill 18 | . . . . . . . . . . 18 . . . Successful Hack 103 | . 49 7 . . 5 8 . . . . 34 . . Select Force Hacks 60 | . 60 . . . . . . . . . . . . Disable Machine 30 | . 30 . . . . . . . . . . . . Destroy Structure 28 | . 7 . . . . . . . . . 21 . . Lose Combat Pursuer 300 | . 60 15 . . . . . 15 . 45 . 90 75 Influence Decreases 1513 | 30 512 314 8 114 11 8 . 15 . 133 84 46 238 Entered New Map 103 | . . 80 8 . 5 . . . . . . 1 9 Time Decay 1125 | 30 379 214 . 80 6 8 . 15 . 118 83 45 147 Lost Part 147 | . 10 20 . 34 . . . . . . 1 . 82 Lost Ally 15 | . . . . . . . . . . 15 . . . Purge Threat 123 | . 123 . . . . . . . . . . . . Squads Dispatched 8 | . 4 . . . . 1 . . . . 3 . . Investigation 4 | . 3 . . . . . . . . . 1 . . Extermination 3 | . . . . . . 1 . . . . 2 . . Reinforcement 1 | . 1 . . . . . . . . . . . . Assault . | . . . . . . . . . . . . . . Garrison . | . . . . . . . . . . . . . . Intercept . | . . . . . . . . . . . . . . Searches Triggered . | . . . . . . . . . . . . . . Construction Impeded . | . . . . . . . . . . . . . . Haulers Reinforced . | . . . . . . . . . . . . . . Active Scanning Responses . | . . . . . . . . . . . . . . Cargo Convoy Interrupts . | . . . . . . . . . . . . . . Stealth | -11 -10 -10 -10 -9 -8 -7 -7 -7 -7 -6 -6 -6 -6 --------- Run | Yrd Mat Min Exi Min Mat Fac Low Low Zio Pro Fac Low Low Distress Signals 2 | . 2 . . . . . . . . . . . . Communications Jammed . | . . . . . . . . . . . . . . Distress Signals . | . . . . . . . . . . . . . . Times Spotted 84 | . 25 8 . 6 . 2 3 9 . 5 5 6 15 Peak Tracking Total 6 | . 4 3 . 2 . 1 3 6 . 3 3 3 4 Tactical Retreats 13 | . 2 1 . . . . . 3 . 1 . 2 4 Traps | -11 -10 -10 -10 -9 -8 -7 -7 -7 -7 -6 -6 -6 -6 ------- Run | Yrd Mat Min Exi Min Mat Fac Low Low Zio Pro Fac Low Low Traps Triggered 4 | . 2 . . . . 1 . . . . 1 . . Indirectly . | . . . . . . . . . . . . . . Trap Hack Attempts . | . . . . . . . . . . . . . . Triggered . | . . . . . . . . . . . . . . Disarmed . | . . . . . . . . . . . . . . Reprogrammed . | . . . . . . . . . . . . . . Reused . | . . . . . . . . . . . . . . Traps Extracted . | . . . . . . . . . . . . . . Installed . | . . . . . . . . . . . . . . Triggered . | . . . . . . . . . . . . . . Most Traps Carried 1 | . . . . . . . . . . . . . 1 Machines | -11 -10 -10 -10 -9 -8 -7 -7 -7 -7 -6 -6 -6 -6 ---------- Run | Yrd Mat Min Exi Min Mat Fac Low Low Zio Pro Fac Low Low Machines Disabled 2 | . 2 . . . . . . . . . . . . Max in Single Turn 1 | . 1 . . . . . . . . . . . . Machines Repaired . | . . . . . . . . . . . . . . Machines Dismantled . | . . . . . . . . . . . . . . Machines Sabotaged . | . . . . . . . . . . . . . . Overloaded Fab Kills . | . . . . . . . . . . . . . . Hacking | -11 -10 -10 -10 -9 -8 -7 -7 -7 -7 -6 -6 -6 -6 --------- Run | Yrd Mat Min Exi Min Mat Fac Low Low Zio Pro Fac Low Low Machines Accessed 26 | . 10 1 2 . 1 3 1 . . . 6 2 . Terminals 16 | . 7 1 . . 1 1 . . . . 5 1 . Fabricators 1 | . . . . . . 1 . . . . . . . Repair Stations 2 | . 1 . . . . . . . . . 1 . . Recycling Units 3 | . 2 . . . . 1 . . . . . . . Scanalyzers . | . . . . . . . . . . . . . . Garrison Access . | . . . . . . . . . . . . . . Total Hacks 73 | . 38 3 5 . 3 10 1 . . . 11 2 . Successful 46 | . 23 3 5 . 2 8 1 . . . 2 2 . Failed 26 | . 14 . . . 1 2 . . . . 9 . . Catastrophic 2 | . . . . . . . . . . . 2 . . Database Lockouts 1 | . 1 . . . . . . . . . . . . Manual 31 | . 23 . 1 . 3 3 . . . . 1 . . Terminals 51 | . 31 3 . . 3 5 . . . . 8 1 . Fabricators 4 | . . . . . . 4 . . . . . . . Repair Stations 7 | . 4 . . . . . . . . . 3 . . Recycling Units 4 | . 3 . . . . 1 . . . . . . . Scanalyzers . | . . . . . . . . . . . . . . Garrison Access . | . . . . . . . . . . . . . . Terminal Hacks 26 | . 10 3 5 . . 3 1 . . . 2 2 . Record 6 | . . 1 4 . . . . . . . . 1 . Robot Analysis 3 | . 3 . . . . . . . . . . . . Prototype ID Bank 4 | . 2 . . . . 1 . . . . 1 . . Open Door 2 | . . . . . . . 1 . . . . 1 . Branch Access Points 2 | . . . . . . 1 . . . . 1 . . Alert Level 1 | . 1 . . . . . . . . . . . . Unreport Threat 1 | . 1 . . . . . . . . . . . . Locate Traps 2 | . 1 . . . . 1 . . . . . . . Dispatch Records 1 | . . 1 . . . . . . . . . . . Patrol Status 1 | . . 1 . . . . . . . . . . . Hauler Manifests 1 | . 1 . . . . . . . . . . . . Zone Layout 1 | . 1 . . . . . . . . . . . . Proto ID Catalog 1 | . . . 1 . . . . . . . . . . Fabricator Hacks 1 | . . . . . . 1 . . . . . . . Network Status 1 | . . . . . . 1 . . . . . . . Repair Station Hacks 2 | . 2 . . . . . . . . . . . . Scan Component 1 | . 1 . . . . . . . . . . . . Repair 1 | . 1 . . . . . . . . . . . . Recycling Unit Hacks 2 | . 1 . . . . 1 . . . . . . . Report Inventory 2 | . 1 . . . . 1 . . . . . . . Scanalyzer . | . . . . . . . . . . . . . . Garrison Access Hacks . | . . . . . . . . . . . . . . Unauthorized Hacks 15 | . 10 . . . 2 3 . . . . . . . Terminals 10 | . 8 . . . 2 . . . . . . . . Botnet 4 | . 3 . . . 1 . . . . . . . . Skim 6 | . 5 . . . 1 . . . . . . . . Fabricators 3 | . . . . . . 3 . . . . . . . Report 1 | . . . . . . 1 . . . . . . . Liberate 1 | . . . . . . 1 . . . . . . . Fabnet 1 | . . . . . . 1 . . . . . . . Repair Stations . | . . . . . . . . . . . . . . Recycling Units 2 | . 2 . . . . . . . . . . . . Tunnel 2 | . 2 . . . . . . . . . . . . Scanalyzers . | . . . . . . . . . . . . . . Garrison Access . | . . . . . . . . . . . . . . Data Cores Recovered 1 | . 1 . . . . . . . . . . . . Used 1 | . 1 . . . . . . . . . . . . Hacking Detections 18 | . 7 1 . . 1 2 . . . . 6 1 . Full Trace Events 1 | . . . . . . . . . . . 1 . . Feedback Events . | . . . . . . . . . . . . . . Feedback Blocked . | . . . . . . . . . . . . . . Robot Schematics Acquired . | . . . . . . . . . . . . . . Robots Built . | . . . . . . . . . . . . . . Authchips . | . . . . . . . . . . . . . . Time . | . . . . . . . . . . . . . . Total Robot Build Rating . | . . . . . . . . . . . . . . Part Schematics Acquired . | . . . . . . . . . . . . . . Parts Built . | . . . . . . . . . . . . . . Authchips . | . . . . . . . . . . . . . . Time . | . . . . . . . . . . . . . . Total Part Build Rating . | . . . . . . . . . . . . . . Parts Repaired 1 | . 1 . . . . . . . . . . . . Time 13 | . 13 . . . . . . . . . . . . Parts Recycled . | . . . . . . . . . . . . . . Recycled Matter . | . . . . . . . . . . . . . . Retrieved Matter . | . . . . . . . . . . . . . . Retrieved Components . | . . . . . . . . . . . . . . Parts Scanalyzed . | . . . . . . . . . . . . . . Part Schematics Acquired . | . . . . . . . . . . . . . . Parts Damaged . | . . . . . . . . . . . . . . Bothacking | -11 -10 -10 -10 -9 -8 -7 -7 -7 -7 -6 -6 -6 -6 ------------ Run | Yrd Mat Min Exi Min Mat Fac Low Low Zio Pro Fac Low Low Used RIF Installer . | . . . . . . . . . . . . . . Robots Hacked . | . . . . . . . . . . . . . . Non-combat . | . . . . . . . . . . . . . . Combat . | . . . . . . . . . . . . . . Robot Hacks Applied . | . . . . . . . . . . . . . . Relay Couplers Released . | . . . . . . . . . . . . . . Fabnet Peak Effective % 3 | . . . . . . . . . . 3 3 3 3 Robots Rewired . | . . . . . . . . . . . . . . Allies Hacked . | . . . . . . . . . . . . . . Hacks Repelled . | . . . . . . . . . . . . . . Allies | -11 -10 -10 -10 -9 -8 -7 -7 -7 -7 -6 -6 -6 -6 -------- Run | Yrd Mat Min Exi Min Mat Fac Low Low Zio Pro Fac Low Low Total Allies 4 | . . . . . . . . . 4 . . . . Largest Group 4 | . . . . . . . . . 4 4 . . . Highest-Rated Group 101 | . . . . . . . . . 101 101 . . . Highest-Rated Ally 31 | . . . . . . . . . 31 31 . . . Total Orders . | . . . . . . . . . . . . . . Ally Attacks 18 | . . . . . . . . . . 18 . . . Total Damage 403 | . . . . . . . . . . 403 . . . Kills 3 | . . . . . . . . . . 3 . . . Allies Corrupted . | . . . . . . . . . . . . . . Allies Melted . | . . . . . . . . . . . . . . Intel | -11 -10 -10 -10 -9 -8 -7 -7 -7 -7 -6 -6 -6 -6 ------- Run | Yrd Mat Min Exi Min Mat Fac Low Low Zio Pro Fac Low Low Active Infowar (turns) 3232 | 75 148 . . . . 347 541 425 27 . 867 255 547 Optics 528 | . . . . . . . . . . . . . 528 IFF 261 | . . . . . . . . . . . 101 141 19 Seismic 223 | 75 148 . . . . . . . . . . . . Jamming 2320 | . . . . . . 347 541 425 27 . 866 114 . Robot Analysis Total 3 | . 3 . . . . . . . . . . . . Derelict Logs Recovered 9 | . . . . 1 . . 1 1 1 3 . 1 1 Drone Launches . | . . . . . . . . . . . . . . Drone Recoveries . | . . . . . . . . . . . . . . Exploration | -11 -10 -10 -10 -9 -8 -7 -7 -7 -7 -6 -6 -6 -6 ------------- Run | Yrd Mat Min Exi Min Mat Fac Low Low Zio Pro Fac Low Low Turns Passed 8002 | 152 1391 451 392 652 97 482 541 425 1058 531 891 255 684 Spaces Moved 6149 | 80 802 254 276 184 118 438 477 504 993 418 693 641 271 Core 28 | 17 . . . . . . . . . . . . 11 Treads 189 | . . . . 20 . . . . . . . . 169 Legs . | . . . . . . . . . . . . . . Wheels 1559 | 63 802 254 276 164 . . . . . . . . . Hover 475 | . . . . . . . . . . . 475 . . Flight 3898 | . . . . . 118 438 477 504 993 418 218 641 91 Fastest Speed 22 | 50 90 140 140 140 25 22 25 22 25 22 22 22 22 Average Speed 108 | 83 136 146 140 176 67 101 111 83 98 119 104 22 215 Slowest Speed 700 | 100 200 200 140 480 265 114 114 117 117 277 280 22 700 Overloaded Moves . | . . . . . . . . . . . . . . Propulsion Burnouts . | . . . . . . . . . . . . . . Robots Hopped 1 | . . . . . . . . 1 . . . . . Potential Cave-ins . | . . . . . . . . . . . . . . Cave-ins Triggered 1 | . . . . . . . . . . . 1 . . Exploration Rate (%) 46 | 4 96 40 69 48 12 11 51 57 81 50 13 73 44 Regions Visited 13 Branch Regions 9 Pre-discovered Areas 10 | . 5 . 1 . . . . . 2 2 . . . Known Exits Taken 3 | . . . . . . 1 1 . . . 1 . . Unknown Exits Taken 10 | 1 1 1 1 1 1 . . 1 1 1 . 1 . Scrap Searched 13 | . . 1 . . . . 3 . 5 2 . 2 . Spaces Dug 30 | . 2 . . . . . . 1 . . 21 5 1 Terrain Destroyed 81 | . 6 . . . . . . 1 . . 21 5 48 Melee 28 | . . . . . . . . 1 . . 21 5 1 Projectile 2 | . 2 . . . . . . . . . . . . AOE 51 | . 4 . . . . . . . . . . . 47 Terrain Rammed . | . . . . . . . . . . . . . . Walls Destroyed . | . . . . . . . . . . . . . . Machines Disabled . | . . . . . . . . . . . . . . Actions | -11 -10 -10 -10 -9 -8 -7 -7 -7 -7 -6 -6 -6 -6 --------- Run | Yrd Mat Min Exi Min Mat Fac Low Low Zio Pro Fac Low Low Total 7142 | 132 974 285 282 466 140 469 485 503 1070 450 815 743 328 Wait 580 | . 70 . . 254 1 . 1 . 62 25 74 92 1 Move 6134 | 79 801 253 275 183 117 437 476 501 992 417 692 640 271 Hop 1 | . . . . . . . . 1 . . . . . Pick Up 68 | 12 25 3 4 1 2 4 1 . 2 2 3 1 8 Fast Attach 23 | 3 2 . . . . . 2 . 3 1 11 . 1 Attach 39 | 5 5 3 . 4 6 1 . . 1 1 3 . 10 Detach 5 | . . . . . 2 . . . 1 1 . . 1 Swap 30 | 1 7 . 1 2 2 3 2 . 5 . 1 3 3 Drop 44 | 1 6 1 2 . 10 4 3 . 4 3 5 1 4 Fire 143 | 31 58 25 . 22 . 2 . . . . . . 5 Melee 57 | . . . . . . . . 1 . . 26 6 24 Ram . | . . . . . . . . . . . . . . Kick . | . . . . . . . . . . . . . . Crush . | . . . . . . . . . . . . . . Escape Stasis 18 | . . . . . . 18 . . . . . . . Rewire . | . . . . . . . . . . . . . . Trap . | . . . . . . . . . . . . . . Miscellaneous . | . . . . . . . . . . . . . . Route ------- -11/Scrapyard -10/Materials (discovered 6 exits: [*Mat x3] / *Min x2 / Sub) -10/Mines (discovered 2 exits: [*Mat] / *Exi) -10/Exiles (discovered 2 exits: [*Min x2]) -9/Mines -8/Materials (discovered 3 exits: *Fac / Sto x2) -7/Factory (discovered 2 exits: *Low x2) -7/Lower Caves -7/Lower Caves -7/Zion -6/Proximity Caves -6/Factory (discovered 2 exits: *Low x2) -6/Lower Caves -6/Lower Caves (discovered 1 exit: [*Dat]) History --------- Turn | Location | Event 42 | -11/Scrapyard | Discovered new exit (range 16) 153 | -11/Scrapyard | Entered Materials 275 | -10/Materials | Discovered new exit (range 15) 323 | -10/Materials | Build established: Mutant 344 | -10/Materials | Repaired EM Pulse Gun 487 | -10/Materials | Central database locked down 527 | -10/Materials | Discovered new exit (range 10) 618 | -10/Materials | Discovered new exit (range 9) 702 | -10/Materials | Discovered new exit (range 16) 1008 | -10/Materials | Discovered new exit (range 16) 1188 | -10/Materials | Identified exit to Subcaves 1249 | -10/Materials | Learned 4 Recycling zone layouts 1335 | -10/Materials | Learned location of 2 exits from Subcaves 1362 | -10/Materials | Learned location of Mines (-9) 1378 | -10/Materials | Learned location of Storage (-8) 1404 | -10/Materials | Learned Recycling recycling unit intel 1438 | -10/Materials | Learned 4 Recycling zone layouts 1484 | -10/Materials | Learned location of 2 exits from Materials 1503 | -10/Materials | Core integrity fell below 50% 1544 | -10/Materials | Entered Mines 1945 | -10/Mines | Discovered new exit (range 7) 1985 | -10/Mines | Deemed a non-threat by the Exiles lab entrance 1987 | -10/Mines | Discovered new exit (range 5) 1995 | -10/Mines | Entered Exiles 2026 | -10/Exiles | Discovered new exit (range 15) 2042 | -10/Exiles | Met 8R-AWN 2064 | -10/Exiles | Met EX-HEX 2134 | -10/Exiles | Met EX-DEC 2157 | -10/Exiles | Learned location of Zion (-7) 2180 | -10/Exiles | Met EX-BIN 2200 | -10/Exiles | Aligned with FarCom system 2201 | -10/Exiles | Given EX-Vault access code 2235 | -10/Exiles | Opened EX-Vault 2249 | -10/Exiles | Found YOLO Cannon 2279 | -10/Exiles | Warned to stay clear of 0b10 Research branches 2296 | -10/Exiles | Exiles lab attacked by MAIN.C 2374 | -10/Exiles | Discovered new exit (range 10) 2387 | -10/Exiles | Left Exiles lab with YOLO Cannon 2387 | -10/Exiles | Entered Mines 2469 | -9/Mines | Learned Materials security intel 2595 | -9/Mines | Excavation squad dispatched 2595 | -9/Mines | A large section of the Mines collapsed 2845 | -9/Mines | Excavation squad dispatched 2934 | -9/Mines | Core integrity fell below 20% 2970 | -9/Mines | Lost 3 parts (1n1u1w) 2977 | -9/Mines | Discovered new exit (range 14) 3039 | -9/Mines | Entered Materials 3039 | -8/Materials | Evolved 4 slots: Propulsion x4 3040 | -8/Materials | Identified exit to Storage 3131 | -8/Materials | Discovered new exit (range 3) 3136 | -8/Materials | Entered Factory 3136 | -7/Factory | Evolved 2 slots: Power x1, Propulsion x1 3178 | -7/Factory | Discovered new exit (range 14) 3384 | -7/Factory | Identified exit to Lower Caves 3618 | -7/Factory | Entered Lower Caves 3789 | -7/Lower Caves | Encountered a Warlord checkpoint 4090 | -7/Lower Caves | Identified exit to Lower Caves 4159 | -7/Lower Caves | Entered another Lower Caves area 4374 | -7/Lower Caves | Attacked by a faux Warlord 4539 | -7/Lower Caves | Discovered new exit (range 10) 4542 | -7/Lower Caves | Encountered a Warlord checkpoint 4545 | -7/Lower Caves | Learned Factory interactive machine intel 4584 | -7/Lower Caves | Entered Zion 4613 | -7/Zion | Found CR-A16's Pointy Stick 4635 | -7/Zion | Discovered new exit (range 12) 4638 | -7/Zion | Given A8's code to call for help 4660 | -7/Zion | Gained Derelict followers 4817 | -7/Zion | Learned location of Warlord (-4) 4995 | -7/Zion | Learned Factory stockpile data 5337 | -7/Zion | Found Prototype Device 5642 | -7/Zion | Entered Proximity Caves 5642 | -6/Proximity Caves | Accompanied by 4 allies 6082 | -6/Proximity Caves | Spotted B-75 Beast 6093 | -6/Proximity Caves | Lost 3 allies 6139 | -6/Proximity Caves | Discovered new exit (range 8) 6147 | -6/Proximity Caves | Learned location of Extension (-4) 6154 | -6/Proximity Caves | Learned Factory security intel 6173 | -6/Proximity Caves | Entered Factory 6173 | -6/Factory | Evolved 2 slots: Utility x2 6176 | -6/Factory | Loaded intel: 53 interactive machine locations 6196 | -6/Factory | Crushed by falling debris 6227 | -6/Factory | Lost 4 parts (1p3n) 6619 | -6/Factory | Identified exit to Lower Caves 7064 | -6/Factory | Entered Lower Caves 7076 | -6/Lower Caves | Learned Factory terminal intel 7317 | -6/Lower Caves | Discovered new exit (range 6) 7319 | -6/Lower Caves | Entered another Lower Caves area 7322 | -6/Lower Caves | Encountered a Warlord checkpoint 7354 | -6/Lower Caves | Learned Factory terminal intel 7369 | -6/Lower Caves | Lost 3 parts (2n1u) 7401 | -6/Lower Caves | Attracted the attention of an 0b10 checkpoint 7448 | -6/Lower Caves | Core integrity fell below 50% 7478 | -6/Lower Caves | Lost 10 parts (2p5n2u1w) 7956 | -6/Lower Caves | Discovered new exit (range 12) 7972 | -6/Lower Caves | System corruption reached 10% 7989 | -6/Lower Caves | Identified Mobile Refinery Mk. CCLXVII 7990 | -6/Lower Caves | Core integrity fell below 20% 7999 | -6/Lower Caves | Released all parts (3) 8003 | -6/Lower Caves | Destroyed by G-50 Soldier with Heavy Laser Last Messages --------------- 07983_ Imp. Deuterium Engine destroyed. 07984_ B-48 Gladiator suffers critical hit (Meltdown). 07988_ Dropped YOLO Cannon. 07989_ Identified Mobile Refinery Mk. CCLXVII. 07991_ Mace fries itself beyond repair. 07991_ Carbon-fiber Leg fries itself beyond repair. 07991_ Acquired 49 matter. 07997_ System corrupted: Energy discharge (-8). 07997_ Carbon-fiber Leg fries itself beyond repair. 07998_ Critical hit (Burn: +37). 07999_ Released Lrg. Storage Unit. 07999_ Released Enh. Optical Array. 07999_ Released Shock Rifle. 07999_ Dropped Med. Storage Unit. 08000_ Acquired 4 matter. 08001_ Dropped Hvy. Rocket Launcher. 08001_ Acquired YOLO Cannon. Map ----- +----------------------------------------------------+ | ?????????????????????????????????????????????????? | | ?????????????????????????????????????????????????? | | ?????????????????????????????????????????????????? | | ?????????????????????????????????????????????????? | | ?????????????????????????????????????????????????? | | ?????????????????????????????????????????????????? | | ?????????????????????????????????????????????????? | | ?????????????????????????????????????????????????? | | ?????????????????????????????????????????????????? | | ?????????????????????????????????????????????????? | | ?????????????????????????????????????????????????? | | ?????????????????????????????????????????????????? | | ?????????????????????????????????????????????????? | | ?????????????????????????????????????????????????? | | ?????????????????????????????????????????????????? | | ?????????????????????????????????????????????????? | | ?????????????????????????????????????????????????? | | ??????????????????????????????????########???????? | | ???????????????????????????????#### ##??????? | | ???????????????????????????????# ####???# | | ???????????????## ??????????????# #### | | ????????##????## ???????####### | | ????????# ## < ####### ## ## | | ????????# % #; #### | | ????????# ;; ##?# % | | ????????# @g ### ## | | ???????# [! ## ### % | | ???????# ## # %!! ; ## #? | | ?????????????# ??# ;;];# ## # ## % | | ?????????????## ????# g;### ### ? | | ??????????????##??????# ##?### #?### # | | ?????????????????????# #????# #????# ### | | ????????????????????# #????# #????# # ? | | ???????????????????# #????# #????## ? | | ???????????????????## #????? #??????###?# % | | ????????????????????# ????? #??????????? | | ????????????????????# ?????###??????????? | | ???????????????????? ??????????????????? | | ??????????????????? ?????????????????? | | ?????????????????? ###?????????????????? | | ?????????????????? ##???????????????????? | | ????????????????? ### #?????????????????????? | | ???????????????? #??# #??????????????????????? | | ???????????????? ???# ????????????????????????? | | ??????????????? #???# ?????????????????????????? | | ?????????????????????? ?????????????????????????? | | ?????????????????????? ?????????????????????????? | | ?????????????????????????????????????????????????? | | ?????????????????????????????????????????????????? | | ?????????????????????????????????????????????????? | +----------------------------------------------------+ Best States ------------- Heat Dissipation 64 Energy Generation 31 Energy Capacity 340 Matter Stores 300 Matter Capacity 300 Sight Range 22 Terrain Scan Density 10 Jamming Range 12 Additional Mass Support 6 Armor Coverage 150 Evasion (%) 65 Targeting Accuracy 5 Recoil Reduction 1 Item Schematics ----------------- None Robot Schematics ------------------ None Fabricated ------------ Nothing Repaired ---------- EM Pulse Gun | 26% | -10/Materials Alien Tech Used ----------------- None Achievements -------------- None Challenges ------------ None Game ------ Seed OpticalNavigationEdition Manual? 0 Play Time 01:19:36 Cumulative 374.9 hours Start 2025.05.06 @ 17:47:52 End 2025.05.06 @ 19:15:43 Sessions 1 Manual Loads 0 Difficulty Rogue Special Mode None Game No. 266 Rogue 256 Adventurer 0 Explorer 10 Win Type - Total 5 Types 5/0/0/0/0/0/0/0/0/0 Lore% 81 Gallery% 69 Achievement% 62 Wizard Run 0 Options --------- Layout 2 ASCII 0 Keyboard 0 Movement Arrows Keybinds 1 Fullscreen 1 Font 24/Smallcaps Map View 50x44 Zoom Use 0% Tactical HUD 1 Map Filters NONE Filters NONE Steam 1 RUN: d098e833-6c24-4ecc-8f83-d5ff95193c72